fUSD/lending_fUSD_20260626
["ID","MTS","AMOUNT","RATE_DAILY","PERIOD"]
[426487122,1782455434000,-500.0,0.00014998,2]
[426487124,1782455434000,-500.0,0.00014998,2]
[426487126,1782455434000,-500.0,0.00014998,2]
[426487120,1782455434000,-133.76803048,0.00014998,2]
[426487123,1782455434000,-500.0,0.00014998,2]
[426487121,1782455434000,-366.23196952,0.00014998,2]
[426487130,1782455434000,-500.0,0.00014998,2]
[426487152,1782455438000,-280.83301079,0.00014999,2]
[426487154,1782455438000,-500.0,0.00014999,2]
[426487156,1782455438000,-373.69693558,0.00014999,2]
[426487153,1782455438000,-500.0,0.00014999,2]
[426487158,1782455438000,-301.27001366,0.00014999,2]
[426487157,1782455438000,-500.0,0.00014999,2]
[426487155,1782455438000,-126.30306442,0.00014999,2]
[426487183,1782455440000,-500.0,0.00014999,2]
[426487194,1782455440000,-500.0,0.00014999,2]
[426487186,1782455440000,-500.0,0.00014999,2]
[426487195,1782455440000,-506.38393951,0.00014999,2]
[426487196,1782455440000,-500.0,0.00014999,2]
[426487188,1782455440000,-281.54905211,0.00014999,2]
[426487190,1782455440000,-500.0,0.00014999,2]
[426487185,1782455440000,-500.0,0.00014999,2]
[426487187,1782455440000,-500.0,0.00014999,2]
[426487192,1782455440000,-500.0,0.00014999,2]
[426487189,1782455440000,-500.0,0.00014999,2]
[426487184,1782455440000,-416.24690667,0.00014999,2]
[426487191,1782455440000,-500.0,0.00014999,2]
[426487179,1782455440000,-523.20986668,0.00014999,2]
[426487169,1782455440000,-500.0,0.00014999,2]
[426487181,1782455440000,-500.0,0.00014999,2]
[426487177,1782455440000,-500.0,0.00014999,2]
[426487173,1782455440000,-500.0,0.00014999,2]
[426487180,1782455440000,-500.0,0.00014999,2]
[426487178,1782455440000,-500.0,0.00014999,2]
[426487174,1782455440000,-554.0606235,0.00014999,2]
[426487176,1782455440000,-500.0,0.00014999,2]
[426487175,1782455440000,-500.0,0.00014999,2]
[426487171,1782455440000,-500.0,0.00014999,2]
[426487170,1782455440000,-500.0,0.00014999,2]
[426487168,1782455440000,-329.2964047,0.00014999,2]
[426487167,1782455440000,-198.72998634,0.00014999,2]
[426487182,1782455440000,-500.0,0.00014999,2]
[426487193,1782455440000,-575.20854242,0.00014999,2]
[426487172,1782455440000,-500.0,0.00014999,2]
[426487197,1782455440000,-500.0,0.00014999,2]
[426487224,1782455440000,-495.27685269,0.00014999,2]
[426487223,1782455440000,-500.0,0.00014999,2]
[426487226,1782455440000,-1000.0,0.00015,2]
[426487227,1782455440000,-546.85462969,0.00015,2]
[426487225,1782455440000,-2176640.93235307,0.00015,2]
[426487219,1782455440000,-500.0,0.00014999,2]
[426487220,1782455440000,-500.0,0.00014999,2]
[426487218,1782455440000,-500.0,0.00014999,2]
[426487215,1782455440000,-500.0,0.00014999,2]
[426487216,1782455440000,-500.0,0.00014999,2]
[426487217,1782455440000,-500.0,0.00014999,2]
[426487214,1782455440000,-500.0,0.00014999,2]
[426487213,1782455440000,-500.0,0.00014999,2]
[426487222,1782455440000,-500.0,0.00014999,2]
[426487199,1782455440000,-500.0,0.00014999,2]
[426487221,1782455440000,-156.68434864,0.00014999,2]
[426487212,1782455440000,-500.0,0.00014999,2]
[426487207,1782455440000,-500.0,0.00014999,2]
[426487202,1782455440000,-500.0,0.00014999,2]
[426487208,1782455440000,-510.84652717,0.00014999,2]
[426487204,1782455440000,-500.0,0.00014999,2]
[426487209,1782455440000,-500.0,0.00014999,2]
[426487200,1782455440000,-500.0,0.00014999,2]
[426487198,1782455440000,-500.0,0.00014999,2]
[426487203,1782455440000,-500.0,0.00014999,2]
[426487205,1782455440000,-500.0,0.00014999,2]
[426487206,1782455440000,-500.0,0.00014999,2]
[426487211,1782455440000,-500.0,0.00014999,2]
[426487210,1782455440000,-500.0,0.00014999,2]
[426487201,1782455440000,-501.71806892,0.00014999,2]
[426487230,1782455441000,-1244.43265999,0.00015,2]
[426487229,1782455441000,-205.04657838,0.00015,2]
[426487228,1782455441000,-699.26315388,0.00010415,2]
[426487234,1782455443000,-1812.51433939,0.00015,2]
[426487236,1782455443000,-335.04991627,0.00015,2]
[426487235,1782455443000,-3008.89979998,0.00015,2]
[426487238,1782455446000,-11259.09313741,0.00015,2]
[426487240,1782455446000,-1151.30067516,0.00015,2]
[426487241,1782455446000,-63540.87044249,0.00015,2]
[426487242,1782455446000,-680.0,0.00015,2]
[426487245,1782455446000,-845.0235,0.00015,2]
[426487244,1782455446000,-1924.777,0.00015,2]
[426487239,1782455446000,-1110.9295,0.00015,2]
[426487246,1782455446000,-2648.012256,0.00015,2]
[426487243,1782455446000,-3909.21959495,0.00015,2]
[426487250,1782455446000,-10189.45500719,0.00015,2]
[426487252,1782455446000,-5333.3785531,0.00015,2]
[426487247,1782455446000,-279.458431,0.00015,2]
[426487249,1782455446000,-1279.40585,0.00015,2]
[426487248,1782455446000,-6206.76100002,0.00015,2]
[426487251,1782455446000,-438.126,0.00015,2]
[426487254,1782455447000,-31426.91282622,0.00015,2]
[426487255,1782455447000,-501.0,0.00015,2]
[426487253,1782455447000,-21819.3163981,0.00015,2]
[426487257,1782455517000,336.8187,9.933e-05,2]
[426487256,1782455517000,150.0,9.933e-05,2]
[426487259,1782455558000,308.22,9.597e-05,2]
[426487260,1782455559000,308.22,9.934e-05,2]
[426487262,1782455614000,-150.0,0.00010187,2]
[426487261,1782455614000,-218.75814337,0.00010103,2]
[426487264,1782455849000,270.21785663,0.00010219,2]
[426487265,1782455870000,200.0,0.00010526,7]
[426487266,1782455885000,815.46781925,9.7e-05,2]
[426487268,1782455886000,162.56807918,9.419e-05,2]
[426487267,1782455886000,298.57218075,9.419e-05,2]
[426487269,1782455931000,194.52470201,9.7e-05,2]
[426487270,1782455983000,219.05357968,0.00010145,2]
[426487271,1782456020000,500.0,0.00037234,120]
[426487292,1782456240000,339.65042032,0.00010168,2]
[426487295,1782456313000,302.53,9.716e-05,2]
[426487294,1782456313000,302.53,9.659e-05,2]
[426487296,1782456314000,302.53,9.772e-05,2]
[426487297,1782456314000,302.53,9.829e-05,2]
[426487299,1782456314000,302.53,9.942e-05,2]
[426487298,1782456314000,302.53,9.885e-05,2]
[426487300,1782456315000,302.53,9.998e-05,2]
[426487339,1782456470000,200.0,9.71e-05,2]
[426487341,1782456499000,301.24262482,9.904e-05,2]
[426487343,1782456541000,8693.010516,9.954e-05,2]
[426487342,1782456541000,1090.634,9.954e-05,2]
[426487345,1782456552000,-217.54705075,0.00010004,2]
[426487346,1782456565000,-150.0,0.00010029,2]
[426487347,1782456565000,-302.53,0.00010055,2]
[426487349,1782456565000,-302.53,0.00010111,2]
[426487348,1782456565000,-150.0,0.00010103,2]
[426487353,1782456566000,-308.22,0.00010271,2]
[426487354,1782456566000,-197.13760393,0.00010281,2]
[426487351,1782456566000,-150.0,0.00010203,2]
[426487352,1782456566000,-302.53,0.00010224,2]
[426487350,1782456566000,-302.53,0.00010168,2]
[426487357,1782456572000,347.80794876,9.7e-05,2]
[426487356,1782456572000,299.04754059,9.7e-05,2]
[426487355,1782456572000,141.40794925,9.7e-05,2]
[426487389,1782456632000,-152.0,0.000105,2]
[426487393,1782456632000,-192.0,0.000105,2]
[426487392,1782456632000,-152.0,0.000105,2]
[426487397,1782456632000,-152.0,0.000105,2]
[426487391,1782456632000,-152.0,0.000105,2]
[426487390,1782456632000,-152.0,0.000105,2]
[426487395,1782456632000,-152.0,0.000105,2]
[426487394,1782456632000,-152.0,0.000105,2]
[426487396,1782456632000,-152.0,0.000105,2]
[426487388,1782456632000,-152.0,0.000105,2]
[426487383,1782456632000,-494.11928478,0.00010451,2]
[426487386,1782456632000,-150.0,0.00010499,2]
[426487382,1782456632000,-302.53,0.0001045,2]
[426487398,1782456632000,-152.0,0.000105,2]
[426487378,1782456632000,-302.53,0.00010337,2]
[426487381,1782456632000,-219.05357966,0.000104,2]
[426487384,1782456632000,-1000.0,0.00010499,2]
[426487379,1782456632000,-302.53,0.00010394,2]
[426487380,1782456632000,-219.05357966,0.00010399,2]
[426487376,1782456632000,-105.39239607,0.00010281,2]
[426487377,1782456632000,-150.0,0.00010303,2]
[426487385,1782456632000,-1000.0,0.00010499,2]
[426487399,1782456632000,-296.0,0.000105,2]
[426487387,1782456632000,-99455.3928157,0.000105,2]
[426487403,1782456632000,-152.0,0.000105,2]
[426487402,1782456632000,-292.0,0.000105,2]
[426487424,1782456632000,-255.0,0.00011528,2]
[426487423,1782456632000,-166.66,0.00011383,2]
[426487419,1782456632000,-166.66,0.00011171,2]
[426487417,1782456632000,-302.53,0.00010676,2]
[426487421,1782456632000,-500.0,0.00011309,2]
[426487422,1782456632000,-1298.14,0.0001136,2]
[426487418,1782456632000,-166.66,0.00010959,2]
[426487420,1782456632000,-175.17480779,0.00011309,2]
[426487414,1782456632000,-302.53,0.00010563,2]
[426487415,1782456632000,-308.22,0.00010608,2]
[426487413,1782456632000,-302.53,0.00010507,2]
[426487412,1782456632000,-160.0,0.00010505,2]
[426487416,1782456632000,-302.53,0.0001062,2]
[426487409,1782456632000,-152.0,0.000105,2]
[426487407,1782456632000,-152.0,0.000105,2]
[426487404,1782456632000,-152.0,0.000105,2]
[426487401,1782456632000,-152.0,0.000105,2]
[426487400,1782456632000,-152.0,0.000105,2]
[426487406,1782456632000,-152.0,0.000105,2]
[426487408,1782456632000,-152.0,0.000105,2]
[426487410,1782456632000,-292.0,0.000105,2]
[426487411,1782456632000,-152.0,0.000105,2]
[426487405,1782456632000,-296.0,0.000105,2]
[426487437,1782456633000,-248.39,0.00013295,2]
[426487446,1782456633000,-169.94,0.00014184,2]
[426487441,1782456633000,-150.0,0.00013803,2]
[426487444,1782456633000,-902.29,0.0001413,2]
[426487445,1782456633000,-160.0,0.00014157,2]
[426487443,1782456633000,-250.0,0.00014,2]
[426487447,1782456633000,-500.0,0.00014356,2]
[426487442,1782456633000,-422.0,0.00013901,2]
[426487440,1782456633000,-965.16,0.0001373,2]
[426487439,1782456633000,-167.4,0.00013662,2]
[426487438,1782456633000,-965.16,0.00013418,2]
[426487426,1782456633000,-166.66,0.00011807,2]
[426487448,1782456633000,-3130.28,0.00014504,2]
[426487436,1782456633000,-363.80960081,0.00013219,2]
[426487432,1782456633000,-500.0,0.0001274,2]
[426487430,1782456633000,-965.16,0.00012482,2]
[426487433,1782456633000,-965.16,0.00012794,2]
[426487431,1782456633000,-433.0,0.00012662,2]
[426487434,1782456633000,-965.16,0.00013106,2]
[426487427,1782456633000,-299.71,0.00011961,2]
[426487425,1782456633000,-166.66,0.00011595,2]
[426487429,1782456633000,-166.66,0.00012018,2]
[426487428,1782456633000,-3059.49,0.00011973,2]
[426487435,1782456633000,-170.19,0.00013203,2]
[426487449,1782456633000,-6814.67,0.00014504,2]
[426487470,1782456633000,-500.0,0.00014972,2]
[426487450,1782456633000,-9999.99,0.00014504,2]
[426487452,1782456633000,-2500.0,0.00014873,2]
[426487475,1782456633000,-14950.96691839,0.00014983,2]
[426487476,1782456633000,-31076.22116021,0.00014983,2]
[426487474,1782456633000,-385.58834098,0.00014982,2]
[426487473,1782456633000,-6181.47250408,0.00014973,2]
[426487468,1782456633000,-500.0,0.00014972,2]
[426487469,1782456633000,-500.0,0.00014972,2]
[426487467,1782456633000,-325.20765564,0.00014972,2]
[426487466,1782456633000,-264.71952153,0.00014972,2]
[426487471,1782456633000,-260975.2545657,0.00014973,2]
[426487465,1782456633000,-500.0,0.00014972,2]
[426487464,1782456633000,-500.0,0.00014972,2]
[426487472,1782456633000,-463.99095862,0.00014973,2]
[426487463,1782456633000,-500.0,0.00014972,2]
[426487462,1782456633000,-500.0,0.00014972,2]
[426487454,1782456633000,-2755.63942458,0.00014873,2]
[426487453,1782456633000,-167.19540302,0.00014873,2]
[426487456,1782456633000,-4369.9575,0.000149,2]
[426487451,1782456633000,-496.90937066,0.00014869,2]
[426487457,1782456633000,-2591.17503326,0.000149,2]
[426487458,1782456633000,-1349.64514668,0.000149,2]
[426487459,1782456633000,-150.34394962,0.000149,2]
[426487460,1782456633000,-500.0,0.00014972,2]
[426487461,1782456633000,-500.0,0.00014972,2]
[426487455,1782456633000,-1187.056,0.00014883,2]
[426487498,1782456638000,-500.0,0.00014971,2]
[426487494,1782456638000,-159.62525758,0.00014971,2]
[426487491,1782456638000,-500.0,0.00014971,2]
[426487495,1782456638000,-500.0,0.00014971,2]
[426487497,1782456638000,-500.0,0.00014971,2]
[426487496,1782456638000,-354.37983916,0.00014971,2]
[426487492,1782456638000,-500.0,0.00014971,2]
[426487493,1782456638000,-513.97845362,0.00014971,2]
[426487486,1782456638000,-392.60342668,0.00014971,2]
[426487487,1782456638000,-500.0,0.00014971,2]
[426487489,1782456638000,-500.0,0.00014971,2]
[426487488,1782456638000,-500.0,0.00014971,2]
[426487485,1782456638000,-500.0,0.00014971,2]
[426487483,1782456638000,-150.0,0.00010287,2]
[426487484,1782456638000,-160.0,0.00010506,2]
[426487499,1782456638000,-500.0,0.00014971,2]
[426487490,1782456638000,-500.0,0.00014971,2]
[426487509,1782456638000,-500.0,0.00014971,2]
[426487504,1782456638000,-500.0,0.00014971,2]
[426487501,1782456638000,-500.0,0.00014971,2]
[426487518,1782456638000,-161.79011906,0.00014972,2]
[426487520,1782456638000,-500.0,0.00014972,2]
[426487519,1782456638000,-500.0,0.00014972,2]
[426487513,1782456638000,-571.35927845,0.00014971,2]
[426487516,1782456638000,-500.0,0.00014971,2]
[426487515,1782456638000,-500.0,0.00014971,2]
[426487500,1782456638000,-500.0,0.00014971,2]
[426487517,1782456638000,-500.0,0.00014971,2]
[426487512,1782456638000,-500.0,0.00014971,2]
[426487514,1782456638000,-500.0,0.00014971,2]
[426487502,1782456638000,-500.0,0.00014971,2]
[426487511,1782456638000,-500.0,0.00014971,2]
[426487507,1782456638000,-604.94898258,0.00014971,2]
[426487505,1782456638000,-500.0,0.00014971,2]
[426487506,1782456638000,-500.0,0.00014971,2]
[426487510,1782456638000,-500.0,0.00014971,2]
[426487503,1782456638000,-500.0,0.00014971,2]
[426487508,1782456638000,-500.0,0.00014971,2]
[426487522,1782456639000,-500.0,0.00014972,2]
[426487521,1782456639000,-500.0,0.00014972,2]
[426487523,1782456639000,-185.15097307,0.00014983,2]
[426487525,1782456639000,-4969.89537955,0.00014983,2]
[426487527,1782456639000,-5400.0,0.00014983,2]
[426487524,1782456639000,-1576.94745,0.00014983,2]
[426487526,1782456639000,-775.32092544,0.00014983,2]
[426487530,1782456639000,-249.93096909,0.00014998,2]
[426487532,1782456639000,-2900.01394117,0.00015,2]
[426487528,1782456639000,-3566.30060923,0.00014983,2]
[426487531,1782456639000,-500.0,0.00014999,2]
[426487529,1782456639000,-5911.56249691,0.00014983,2]
[426487534,1782456639000,-553.36,0.00015,2]
[426487533,1782456639000,-339.88265974,0.00015,2]
[426487541,1782456640000,-2107.68645529,0.00015,2]
[426487540,1782456640000,-3800.0,0.00015,2]
[426487542,1782456640000,-1057.78201256,0.00015,2]
[426487543,1782456640000,-22938.01079164,0.00015,2]
[426487548,1782456640000,-378.80780789,0.00015,2]
[426487545,1782456640000,-41178.89371365,0.00015,2]
[426487547,1782456640000,-675.98046,0.00015,2]
[426487546,1782456640000,-421.44978048,0.00015,2]
[426487544,1782456640000,-1573.41116761,0.00015,2]
[426487551,1782456643000,-728.7395863,0.00015,2]
[426487552,1782456643000,-14111.36532356,0.00015,2]
[426487554,1782456643000,-258.02670122,0.00015,2]
[426487553,1782456643000,-353.30239913,0.00015,2]
[426487570,1782456646000,-8413.88926357,0.00015,2]
[426487568,1782456646000,-350.625,0.00015,2]
[426487569,1782456646000,-1187.05600419,0.00015,2]
[426487566,1782456646000,-8457.61690464,0.00015,2]
[426487565,1782456646000,-1369.76862103,0.00015,2]
[426487567,1782456646000,-78244.69198903,0.00015,2]
[426487564,1782456646000,500.0,9.904e-05,2]
[426487738,1782457060000,967483.73127224,0.00037237,120]
[426487750,1782457261000,373.55,9.837e-05,2]
[426487760,1782457374000,840.0,0.00037233,120]
[426487761,1782457405000,7253.40612402,0.00037233,120]
[426487762,1782457438000,999.47252932,0.00037233,120]
[426487769,1782457790000,303.51,9.793e-05,2]
[426487770,1782457793000,-150.0,0.00010044,2]
[426487771,1782457793000,-303.51,0.00010044,2]
[426487773,1782457793000,-324.5037547,0.00010182,2]
[426487772,1782457793000,-150.0,0.00010079,2]
[426487774,1782457797000,177.13,9.557e-05,2]
[426487810,1782457831000,-373.55,0.00010528,2]
[426487814,1782457831000,-150.0,0.0001069,2]
[426487815,1782457831000,-154.0,0.00010792,2]
[426487817,1782457831000,-151.0,0.000109,2]
[426487816,1782457831000,-373.55,0.00010873,2]
[426487819,1782457831000,-151.0,0.000109,2]
[426487818,1782457831000,-150.0,0.000109,2]
[426487820,1782457831000,-153.0,0.000109,2]
[426487828,1782457831000,-151.0,0.000109,2]
[426487825,1782457831000,-151.0,0.000109,2]
[426487823,1782457831000,-153.0,0.000109,2]
[426487811,1782457831000,-514.69,0.00010547,2]
[426487827,1782457831000,-151.0,0.000109,2]
[426487808,1782457831000,-150.0,0.00010385,2]
[426487824,1782457831000,-151.0,0.000109,2]
[426487813,1782457831000,-150.0,0.00010589,2]
[426487804,1782457831000,-153.0,0.00010355,2]
[426487807,1782457831000,-160.0,0.00010363,2]
[426487803,1782457831000,-151.0,0.00010355,2]
[426487805,1782457831000,-153.0,0.00010355,2]
[426487806,1782457831000,-150.0,0.00010355,2]
[426487802,1782457831000,-151.0,0.00010355,2]
[426487801,1782457831000,-151.0,0.00010355,2]
[426487800,1782457831000,-151.0,0.00010355,2]
[426487796,1782457831000,-150.0,0.00010241,2]
[426487799,1782457831000,-326.5,0.00010355,2]
[426487797,1782457831000,-150.0,0.00010283,2]
[426487798,1782457831000,-303.51,0.00010295,2]
[426487795,1782457831000,-49.0462453,0.00010182,2]
[426487809,1782457831000,-150.0,0.00010487,2]
[426487821,1782457831000,-151.0,0.000109,2]
[426487812,1782457831000,-303.51,0.00010547,2]
[426487829,1782457831000,-150.0,0.000109,2]
[426487867,1782457831000,-2130.75,0.00012893,2]
[426487866,1782457831000,-42278.43,0.00012893,2]
[426487868,1782457831000,-166.66,0.00012902,2]
[426487864,1782457831000,-220.33,0.00012728,2]
[426487863,1782457831000,-500.0,0.00012684,2]
[426487862,1782457831000,-166.66,0.00012636,2]
[426487859,1782457831000,-500.0,0.00012136,2]
[426487858,1782457831000,-243.71,0.00012136,2]
[426487857,1782457831000,-223.39,0.00012071,2]
[426487856,1782457831000,-175.5,0.00012027,2]
[426487854,1782457831000,-271.34,0.0001201,2]
[426487852,1782457831000,-150.0,0.00012007,2]
[426487850,1782457831000,-150.0,0.00011976,2]
[426487861,1782457831000,-500.0,0.0001241,2]
[426487860,1782457831000,-2758.71,0.00012195,2]
[426487845,1782457831000,-326.5,0.00011445,2]
[426487848,1782457831000,-177.13,0.00011946,2]
[426487830,1782457831000,-326.5,0.000109,2]
[426487835,1782457831000,-153.0,0.00011,2]
[426487836,1782457831000,-250.0,0.00011049,2]
[426487834,1782457831000,-150.0,0.00011,2]
[426487832,1782457831000,-4762.37258202,0.00011,2]
[426487833,1782457831000,-151.0,0.00011,2]
[426487822,1782457831000,-150.0,0.000109,2]
[426487843,1782457831000,-250.0,0.00011201,2]
[426487839,1782457831000,-250.0,0.00011049,2]
[426487837,1782457831000,-193.0,0.00011049,2]
[426487840,1782457831000,-1177.00369953,0.00011138,2]
[426487842,1782457831000,-493.77448496,0.00011201,2]
[426487865,1782457831000,-4999.99,0.00012893,2]
[426487831,1782457831000,-172.72973787,0.00010945,2]
[426487886,1782457832000,-243.71,0.00013653,2]
[426487887,1782457832000,-220.33,0.00013683,2]
[426487888,1782457832000,-978.7588181,0.00013698,2]
[426487889,1782457832000,-1000.0,0.00013698,2]
[426487891,1782457832000,-3400.2,0.00013699,2]
[426487892,1782457832000,-166.66,0.000137,2]
[426487890,1782457832000,-3994.25435706,0.00013698,2]
[426487897,1782457832000,-220.33,0.00014001,2]
[426487895,1782457832000,-166.66,0.00013966,2]
[426487894,1782457832000,-166.74,0.00013857,2]
[426487898,1782457832000,-250.0,0.00014062,2]
[426487896,1782457832000,-250.0,0.00014,2]
[426487899,1782457832000,-221.55,0.00014233,2]
[426487901,1782457832000,-154.33293359,0.00014591,2]
[426487893,1782457832000,-200.0,0.0001379,2]
[426487900,1782457832000,-177.13,0.00014336,2]
[426487871,1782457832000,-166.66,0.00013168,2]
[426487885,1782457832000,-166.66,0.00013434,2]
[426487870,1782457832000,-220.33,0.00013047,2]
[426487902,1782457832000,-151.0,0.00014712,2]
[426487869,1782457832000,-649.07,0.00012923,2]
[426487872,1782457832000,-220.33,0.00013365,2]
[426487875,1782457832000,-152.0,0.0001337,2]
[426487873,1782457832000,-150.0,0.0001337,2]
[426487884,1782457832000,-500.0,0.00013425,2]
[426487874,1782457832000,-152.0,0.0001337,2]
[426487877,1782457832000,-300.0,0.0001337,2]
[426487880,1782457832000,-150.0,0.0001337,2]
[426487882,1782457832000,-151.0,0.0001337,2]
[426487881,1782457832000,-151.0,0.0001337,2]
[426487883,1782457832000,-910.0,0.0001337,2]
[426487879,1782457832000,-153.0,0.0001337,2]
[426487876,1782457832000,-153.0,0.0001337,2]
[426487903,1782457832000,-861.8231,0.00014799,2]
[426487878,1782457832000,-893.0,0.0001337,2]
[426487905,1782457832000,-155.02825642,0.00014848,2]
[426487921,1782457832000,-500.0,0.00014999,2]
[426487925,1782457832000,-500.0,0.00014999,2]
[426487926,1782457832000,-500.0,0.00014999,2]
[426487928,1782457832000,-500.0,0.00014999,2]
[426487929,1782457832000,-333.93870992,0.00014999,2]
[426487927,1782457832000,-577.64535894,0.00014999,2]
[426487922,1782457832000,-500.0,0.00014999,2]
[426487934,1782457832000,-39907.27259822,0.00015,2]
[426487935,1782457832000,-18516.17257635,0.00015,2]
[426487932,1782457832000,-29260.41478573,0.00015,2]
[426487933,1782457832000,-157424.19000243,0.00015,2]
[426487936,1782457832000,-1254.41808677,0.00015,2]
[426487937,1782457832000,-1246.48,0.00015,2]
[426487938,1782457832000,-424.63898139,0.00015,2]
[426487931,1782457832000,-524.0,0.00015,5]
[426487923,1782457832000,-263.25308335,0.00014999,2]
[426487930,1782457832000,-535.30366508,0.00014999,2]
[426487914,1782457832000,-160.0,0.00014985,2]
[426487920,1782457832000,-500.0,0.00014999,2]
[426487910,1782457832000,-167.19540302,0.000149,2]
[426487906,1782457832000,-2500.0,0.00014891,2]
[426487904,1782457832000,-447.21843354,0.000148,2]
[426487907,1782457832000,-46317.2875,0.00014899,2]
[426487909,1782457832000,-3049.65696709,0.000149,2]
[426487908,1782457832000,-39955.3755,0.000149,2]
[426487912,1782457832000,-350.0,0.00014948,2]
[426487911,1782457832000,-1000.31497809,0.000149,2]
[426487913,1782457832000,-150.0,0.00014972,2]
[426487924,1782457832000,-500.0,0.00014999,2]
[426487917,1782457832000,-14667.8141224,0.00014991,2]
[426487915,1782457832000,-216.48047229,0.00014985,2]
[426487918,1782457832000,-3468.441621,0.00014991,2]
[426487916,1782457832000,-974.7239721,0.00014991,2]
[426487919,1782457832000,-55953.8684777,0.00014991,2]
[426487957,1782457837000,-675.78141647,0.00015,2]
[426487956,1782457837000,-1469.54,0.00015,2]
[426487955,1782457837000,-303.53,0.00010692,2]
[426487959,1782457838000,-374.68915625,0.00015,2]
[426487958,1782457838000,-718.29858037,0.00015,2]
[426487960,1782457838000,-360.90989524,0.00015,2]
[426487962,1782457838000,-978.70596519,0.00015,2]
[426487961,1782457838000,-1072.01525257,0.00015,2]
[426487968,1782457840000,-2813.99392935,0.00015,2]
[426487978,1782457842000,-150.0,0.00010692,2]
[426487979,1782457842000,-389.34622638,0.00014898,2]
[426487981,1782457843000,-500.0,0.00014898,2]
[426487983,1782457843000,-500.0,0.00014898,2]
[426487982,1782457843000,-500.0,0.00014898,2]
[426487980,1782457843000,-110.65377362,0.00014898,2]
[426487989,1782457843000,-209.42883458,0.00014898,2]
[426487985,1782457843000,-250.69999796,0.00014898,2]
[426487988,1782457843000,-190.83493904,0.00014898,2]
[426487987,1782457843000,-309.16506096,0.00014898,2]
[426487986,1782457843000,-500.0,0.00014898,2]
[426487990,1782457843000,-290.57116542,0.00014898,2]
[426487991,1782457843000,-440.35839658,0.00014898,2]
[426487984,1782457843000,-500.0,0.00014898,2]
[426488014,1782457846000,-62.25165346,0.00014898,2]
[426488013,1782457846000,-171.8916,0.00014898,2]
[426488012,1782457846000,-151.0,0.00012309,2]
[426488010,1782457846000,-500.0,0.00014898,2]
[426488007,1782457846000,-500.0,0.00014898,2]
[426488004,1782457846000,-119.55521342,0.00014898,2]
[426488006,1782457846000,-500.0,0.00014898,2]
[426488015,1782457846000,-500.0,0.00014898,2]
[426488009,1782457846000,-305.14403116,0.00014898,2]
[426488008,1782457846000,-194.85596884,0.00014898,2]
[426488005,1782457846000,-500.0,0.00014898,2]
[426488003,1782457846000,-380.44478658,0.00014898,2]
[426488002,1782457846000,-59.64160342,0.00014898,2]
[426488011,1782457846000,-265.85674654,0.00014898,2]
[426488019,1782457846000,-500.0,0.00014898,2]
[426488016,1782457846000,-500.0,0.00014898,2]
[426488023,1782457846000,-500.0,0.00014898,2]
[426488033,1782457846000,-749.1088,0.00015,2]
[426488017,1782457846000,-500.0,0.00014898,2]
[426488031,1782457846000,-3566.40164367,0.00015,2]
[426488030,1782457846000,-500.0,0.00014898,2]